[Event "Western Asian Juniors Chess-ch 2023"]
[Site "Colombo"]
[Date "2023.12.01"]
[Round "3.4"]
[White "De Silva, L M S T"]
[Black "Kulathilake, S M M P"]
[Result "1-0"]
[ECO "A13"]
[WhiteElo "2394"]
[BlackElo "1583"]
[Annotator "RC"]
[PlyCount "69"]
[EventDate "2023.11.30"]
[EventCountry "SRI"]
[SourceTitle "playchess.com"]
[Source "ChessBase"]
[SourceQuality "1"]
[TimeControl "5400+30"]

1. Nf3 {[%emt 0:00:09]} d5 {[%emt 0:00:20]} 2. e3 {[%emt 0:00:09]} Nf6 {[%emt 0:00:27]} 3. c4 {[%emt 0:00:07]} e6 {[%emt 0:00:07]} 4. b3 {[%emt 0:00:18]} Be7 {[%emt 0:00:26]} 5. Bb2 {[%emt 0:00:08]} O-O {[%emt 0:00:38]} 6. Nc3 {[%emt 0:00:21]} b6 {[%emt 0:01:57]} 7. cxd5 {[%emt 0:01:59]} exd5 {[%emt 0:00:12]} 8. d4 {[%emt 0:00:08]} Bf5 {[%emt 0:02:20]} 9. Bd3 {[%emt 0:01:56]} Ne4 {[%emt 0:04:41]} 10. Qc2 {[%emt 0:06:00]} Bb4 {[%emt 0:02:46]} 11. O-O {[%emt 0:01:22]} Bxc3 {[%emt 0:06:17]} 12. Bxc3 {[%emt 0:00:12]} Nd7 {[%emt 0:08:55]} 13. Bb2 {[%emt 0:04:38]} Rc8 {[%emt 0:06:53]} 14. Rad1 {[%emt 0:04:15]} Qe7 {[%emt 0:16:49]} 15. Ne5 {[%emt 0:21:08]} Nxe5 {[%emt 0:01:07]} 16. dxe5 {[%emt 0:00:07]} Bg6 {[%emt 0:15:37]} 17. f3 {[%emt 0:05:57]} Ng5 {[%emt 0:02:44]} 18. f4 {[%emt 0:04:15]} Bxd3 {[%emt 0:03:05]} 19. Qxd3 {[%emt 0:03:13]} Ne4 {[%emt 0:01:33]} 20. Qxd5 {[%emt 0:00:16]} Nc5 {[%emt 0:00:11]} 21. Ba3 {[%emt 0:03:37]} Rfd8 {[%emt 0:01:10]} 22. Bxc5 {[%emt 0:03:47]} bxc5 {[%emt 0:00:20]} 23. Qc6 {[%emt 0:00:48]} h6 {[%emt 0:02:38]} 24. Qb7 {[%emt 0:08:17]} a5 {[%emt 0:01:11]} 25. Rc1 {[%emt 0:02:01]} f6 {[%emt 0:00:59]} 26. exf6 {[%emt 0:10:48]} Qxe3+ {[%emt 0:00:49]} 27. Kh1 {[%emt 0:00:04]} gxf6 {[%emt 0:01:03]} 28. Qa6 {[%emt 0:00:38]} Qd4 {[%emt 0:02:13]} 29. Qe2 {[%emt 0:01:43]} Qd3 {[%emt 0:04:06]} 30. Qe6+ {[%emt 0:00:23]} Kg7 {[%emt 0:01:17]} 31. Qe7+ {[%emt 0:00:10]} Kg8 {[%emt 0:00:32]} 32. Qxf6 {[%emt 0:00:55]} Rd6 {[%emt 0:00:20]} 33. Qe5 {[%emt 0:01:10]} Rcd8 {[%emt 0:00:20]} 34. h3 {[%emt 0:16:31]} Qd4 {[%emt 0:01:45]} 35. Qxc5 {[%emt 0:00:00]} 1-0

[Event "Western Asian Juniors Chess-ch 2023"]
[Site "Colombo"]
[Date "2023.12.01"]
[Round "3.5"]
[White "Thilakarathne, G M H"]
[Black "Dissanayake, R K T"]
[Result "1-0"]
[ECO "B52"]
[WhiteElo "2389"]
[BlackElo "1865"]
[Annotator "RC"]
[PlyCount "59"]
[EventDate "2023.11.30"]
[EventCountry "SRI"]
[SourceTitle "playchess.com"]
[Source "ChessBase"]
[SourceQuality "1"]
[TimeControl "5400+30"]

1. e4 {[%emt 0:05:36]} c5 {[%emt 0:00:02]} 2. Nf3 {[%emt 0:00:06]} d6 {[%emt 0:00:06]} 3. Bb5+ {[%emt 0:00:04]} Bd7 {[%emt 0:00:09]} 4. Bxd7+ {[%emt 0:00:05]} Qxd7 {[%emt 0:00:06]} 5. c4 {[%emt 0:00:05]} Nc6 {[%emt 0:01:52]} 6. O-O {[%emt 0:01:38]} Nf6 {[%emt 0:00:09]} 7. Nc3 {[%emt 0:00:20]} g6 {[%emt 0:00:10]} 8. a3 {[%emt 0:16:47]} Bg7 {[%emt 0:02:56]} 9. Rb1 {[%emt 0:00:14]} O-O {[%emt 0:02:59]} 10. b4 {[%emt 0:00:44]} b6 {[%emt 0:01:38]} 11. d3 {[%emt 0:13:43]} Ne8 {[%emt 0:11:53]} 12. Ne2 {[%emt 0:07:57]} Nc7 {[%emt 0:04:19]} 13. b5 {[%emt 0:07:42]} Nd4 {[%emt 0:10:06]} 14. Nfxd4 {[%emt 0:08:18]} cxd4 {[%emt 0:00:08]} 15. Ng3 {[%emt 0:10:57]} e6 {[%emt 0:14:16]} 16. a4 {[%emt 0:04:32]} f5 {[%emt 0:12:59]} 17. exf5 {[%emt 0:02:18]} exf5 {[%emt 0:02:28]} 18. Qf3 {[%emt 0:01:37]} Ne6 {[%emt 0:04:19]} 19. Qd5 {[%emt 0:07:34]} Kh8 {[%emt 0:03:04]} 20. Ba3 {[%emt 0:00:44]} Be5 {[%emt 0:06:09]} 21. Rbe1 {[%emt 0:04:04]} Nf4 {[%emt 0:06:27]} 22. Qf3 {[%emt 0:00:09]} g5 {[%emt 0:04:37]} 23. Bc1 {[%emt 0:00:30]} g4 {[%emt 0:00:30]} 24. Qd1 {[%emt 0:00:08]} h5 {[%emt 0:04:05]} 25. Bxf4 {[%emt 0:01:52]} Bxf4 {[%emt 0:00:01]} 26. Nxh5 {[%emt 0:00:15]} Bxh2+ {[%emt 0:00:49]} 27. Kxh2 {[%emt 0:00:07]} Rf7 {[%emt 0:01:09]} 28. Rh1 {[%emt 0:00:16]} Rh7 {[%emt 0:00:21]} 29. Kg3 {[%emt 0:00:27]} Rf8 {[%emt 0:01:29]} 30. Nf4 {[%emt 0:00:09]} 1-0

[Event "Western Asian Juniors Chess-ch 2023"]
[Site "Colombo"]
[Date "2023.12.01"]
[Round "3.6"]
[White "Halynyazow, Vepaly"]
[Black "Raahul V S"]
[Result "0-1"]
[ECO "D43"]
[WhiteElo "2020"]
[BlackElo "2350"]
[Annotator "RC"]
[PlyCount "132"]
[EventDate "2023.11.30"]
[EventCountry "SRI"]
[SourceTitle "playchess.com"]
[Source "ChessBase"]
[SourceQuality "1"]
[TimeControl "5400+30"]

1. d4 {[%emt 0:00:03]} Nf6 {[%emt 0:02:17]} 2. Nf3 {[%emt 0:00:33]} d5 {[%emt 0:00:06]} 3. c4 {[%emt 0:00:40]} e6 {[%emt 0:00:05]} 4. Bg5 {[%emt 0:00:23]} Bb4+ {[%emt 0:00:12]} 5. Nc3 {[%emt 0:00:11]} h6 {[%emt 0:00:04]} 6. Bxf6 {[%emt 0:00:50]} Qxf6 {[%emt 0:00:05]} 7. e3 {[%emt 0:00:22]} O-O {[%emt 0:00:23]} 8. Rc1 {[%emt 0:01:41]} c6 {[%emt 0:08:00]} 9. Bd3 {[%emt 0:01:34]} Nd7 {[%emt 0:01:00]} 10. cxd5 {[%emt 0:00:43]} exd5 {[%emt 0:00:22]} 11. O-O {[%emt 0:00:12]} Bd6 {[%emt 0:13:38]} 12. e4 {[%emt 0:02:04]} Bf4 {[%emt 0:02:19]} 13. e5 {[%emt 0:02:38]} Qe6 {[%emt 0:00:11]} 14. Rc2 {[%emt 0:00:39]} f6 {[%emt 0:01:15]} 15. Re2 {[%emt 0:06:53]} fxe5 {[%emt 0:02:02]} 16. dxe5 {[%emt 0:01:33]} Nc5 {[%emt 0:02:20]} 17. Bb1 {[%emt 0:00:30]} Qg4 {[%emt 0:00:30]} 18. b4 {[%emt 0:00:30]} Qh5 {[%emt 0:00:30]} 19. bxc5 {[%emt 0:31:25]} Bg4 {[%emt 0:02:51]} 20. Nxd5 {[%emt 0:00:12]} cxd5 {[%emt 0:00:14]} 21. Qxd5+ {[%emt 0:00:06]} Rf7 {[%emt 0:00:07]} 22. h3 {[%emt 0:26:04]} Bxf3 {[%emt 0:00:10]} 23. Qxf3 {[%emt 0:00:07]} Bh2+ {[%emt 0:00:03]} 24. Kxh2 {[%emt 0:00:01]} Rxf3 {[%emt 0:00:07]} 25. gxf3 {[%emt 0:00:12]} Rf8 {[%emt 0:00:21]} 26. Be4 {[%emt 0:06:43]} Qxe5+ {[%emt 0:00:08]} 27. Kh1 {[%emt 0:01:20]} Qxc5 {[%emt 1:04:40]} 28. Rc2 {[%emt 0:02:33]} Qh5 {[%emt 0:00:00]} 29. Kg2 {[%emt 0:01:48]} Qg5+ {[%emt 0:01:00]} 30. Kh1 {[%emt 0:01:18]} Re8 {[%emt 0:00:00]} 31. Rfc1 {[%emt 0:02:09]} b6 {[%emt 0:00:00]} 32. Rc8 {[%emt 0:02:41]} Kf7 {[%emt 0:00:00]} 33. R1c7+ {[%emt 0:01:16]} Re7 {[%emt 0:00:00]} 34. Rc6 {[%emt 0:00:19]} Rd7 {[%emt 0:00:00]} 35. Bg6+ {[%emt 0:02:39]} Qxg6 {[%emt 0:00:00]} 36. Rxg6 {[%emt 0:00:06]} Kxg6 {[%emt 0:00:00]} 37. Rc2 {[%emt 0:00:10]} Rd1+ {[%emt 0:00:00]} 38. Kg2 {[%emt 0:00:02]} Ra1 {[%emt 0:00:00]} 39. Kg3 {[%emt 0:03:13]} Kf5 {[%emt 0:00:00]} 40. Rb2 {[%emt 0:01:03]} Ke5 {[%emt 0:00:00]} 41. f4+ {[%emt 0:00:35]} Kf5 {[%emt 0:00:00]} 42. Kf3 {[%emt 0:00:16]} Rc1 {[%emt 0:00:00]} 43. Rb5+ {[%emt 0:00:30]} Rc5 {[%emt 0:00:00]} 44. Rb3 {[%emt 0:00:30]} Ra5 {[%emt 0:00:00]} 45. a3 {[%emt 0:00:30]} Ra4 {[%emt 0:00:00]} 46. Kg3 {[%emt 0:01:15]} Ke6 {[%emt 0:00:00]} 47. Rd3 {[%emt 0:00:16]} b5 {[%emt 0:00:00]} 48. Kg4 {[%emt 0:00:50]} a6 {[%emt 0:00:00]} 49. h4 {[%emt 0:00:04]} g6 {[%emt 0:00:00]} 50. f3 {[%emt 0:01:08]} Ke7 {[%emt 0:00:00]} 51. Re3+ {[%emt 0:00:51]} Kf6 {[%emt 0:00:00]} 52. Rc3 {[%emt 0:01:29]} Rc4 {[%emt 0:00:00]} 53. Rd3 {[%emt 0:00:12]} h5+ {[%emt 0:00:00]} 54. Kg3 {[%emt 0:00:01]} Rc6 {[%emt 0:00:00]} 55. Kf2 {[%emt 0:00:56]} a5 {[%emt 0:00:00]} 56. Rb3 {[%emt 0:00:40]} Rb6 {[%emt 0:00:00]} 57. Ke3 {[%emt 0:00:11]} Kf5 {[%emt 0:00:00]} 58. Kd4 {[%emt 0:00:30]} b4 {[%emt 0:00:00]} 59. Kc5 {[%emt 0:00:30]} Rb8 {[%emt 0:00:00]} 60. a4 {[%emt 0:00:30]} Kxf4 {[%emt 0:00:00]} 61. Kc4 {[%emt 0:00:30]} Rd8 {[%emt 0:00:00]} 62. Kb5 {[%emt 0:00:30]} Rd5+ {[%emt 0:00:00]} 63. Kb6 {[%emt 0:00:30]} Kg3 {[%emt 0:00:00]} 64. Rd3 {[%emt 0:00:30]} Kxh4 {[%emt 0:00:00]} 65. f4 {[%emt 0:00:30]} Rf5 {[%emt 0:00:00]} 66. Rd6 {[%emt 0:00:27]} Kg4 {[%emt 0:00:00]} 0-1

[Event "Western Asian Juniors Chess-ch 2023"]
[Site "Colombo"]
[Date "2023.12.01"]
[Round "3.7"]
[White "Sathsindu, W M Minura"]
[Black "Ankit Ray"]
[Result "1/2-1/2"]
[ECO "E11"]
[WhiteElo "1542"]
[BlackElo "1902"]
[Annotator "NA"]
[PlyCount "55"]
[EventDate "2023.11.30"]
[EventCountry "SRI"]
[SourceTitle "playchess.com"]
[Source "ChessBase"]
[SourceQuality "1"]
[TimeControl "5400+30"]

1. d4 {[%emt 0:00:07]} Nf6 {[%emt 0:00:07]} 2. Nf3 {[%emt 0:00:51]} e6 {[%emt 0:00:10]} 3. c4 {[%emt 0:00:18]} Bb4+ {[%emt 0:00:07]} 4. Bd2 {[%emt 0:00:09]} Qe7 {[%emt 0:00:06]} 5. a3 {[%emt 0:00:54]} Bxd2+ {[%emt 0:00:09]} 6. Nbxd2 {[%emt 0:00:20]} d6 {[%emt 0:00:22]} 7. e4 {[%emt 0:02:48]} e5 {[%emt 0:00:15]} 8. d5 {[%emt 0:01:18]} a5 {[%emt 0:00:49]} 9. b4 {[%emt 0:05:59]} Bg4 {[%emt 0:03:37]} 10. Be2 {[%emt 0:02:14]} Na6 {[%emt 0:09:23]} 11. O-O {[%emt 0:05:01]} O-O {[%emt 0:00:40]} 12. Rb1 {[%emt 0:01:24]} axb4 {[%emt 0:04:01]} 13. axb4 {[%emt 0:00:14]} Nh5 {[%emt 0:06:59]} 14. g3 {[%emt 0:05:50]} g6 {[%emt 0:00:40]} 15. Nh4 {[%emt 0:09:50]} Bxe2 {[%emt 0:00:17]} 16. Qxe2 {[%emt 0:00:21]} Ng7 {[%emt 0:00:31]} 17. Ng2 {[%emt 0:04:48]} Rae8 {[%emt 0:04:24]} 18. Rfe1 {[%emt 0:13:44]} Qd7 {[%emt 0:04:31]} 19. Qd3 {[%emt 0:02:54]} f5 {[%emt 0:02:05]} 20. f4 {[%emt 0:11:32]} Rf7 {[%emt 0:07:24]} 21. fxe5 {[%emt 0:02:48]} Ree7 {[%emt 0:54:23]} 22. e6 Rxe6 {[%emt 0:00:00]} 23. Nf3 {[%emt 0:02:03]} Rxe4 {[%emt 0:00:00]} 24. Rxe4 {[%emt 0:01:13]} fxe4 {[%emt 0:00:00]} 25. Qxe4 {[%emt 0:00:14]} Qf5 {[%emt 0:00:00]} 26. Qxf5 {[%emt 0:01:17]} Nxf5 {[%emt 0:00:00]} 27. Ng5 {[%emt 0:00:41]} Re7 {[%emt 0:00:00]} 28. Ne6 {[%emt 0:01:38]} 1/2-1/2

[Event "Western Asian Juniors Chess-ch 2023"]
[Site "Colombo"]
[Date "2023.12.01"]
[Round "3.8"]
[White "Nabil Nazar, Mohamed"]
[Black "Wijerathna, Vinuka Dihain"]
[Result "1-0"]
[ECO "D02"]
[WhiteElo "1803"]
[BlackElo "1534"]
[Annotator "NA RC"]
[PlyCount "119"]
[EventDate "2023.11.30"]
[EventCountry "SRI"]
[SourceTitle "playchess.com"]
[Source "ChessBase"]
[SourceQuality "1"]
[TimeControl "5400+30"]

1. d4 {[%emt 0:11:11]} Nf6 {[%emt 0:00:13]} 2. Bf4 {[%emt 0:00:06]} d5 {[%emt 0:00:13]} 3. e3 {[%emt 0:00:05]} e6 {[%emt 0:00:06]} 4. Nf3 {[%emt 0:00:04]} Bd6 {[%emt 0:00:08]} 5. Bg3 {[%emt 0:00:02]} O-O {[%emt 0:00:12]} 6. Nbd2 {[%emt 0:00:02]} c5 {[%emt 0:00:10]} 7. c3 {[%emt 0:00:07]} Qc7 {[%emt 0:00:24]} 8. dxc5 {[%emt 0:03:12]} Qxc5 {[%emt 0:00:48]} 9. b4 {[%emt 0:00:03]} Qc7 {[%emt 0:00:12]} 10. c4 {[%emt 0:00:03]} Bxg3 {[%emt 0:02:20]} 11. hxg3 {[%emt 0:00:27]} Qe7 {[%emt 0:01:18]} 12. a3 {[%emt 0:01:15]} a5 {[%emt 0:01:09]} 13. b5 {[%emt 0:05:20]} Nbd7 {[%emt 0:01:20]} 14. Qc2 {[%emt 0:00:53]} h6 {[%emt 0:02:28]} 15. Be2 {[%emt 0:01:32]} Nc5 {[%emt 0:02:08]} 16. Nb3 {[%emt 0:22:45]} Nce4 {[%emt 0:01:29]} 17. O-O {[%emt 0:03:19]} a4 {[%emt 0:01:33]} 18. Nbd2 {[%emt 0:01:14]} Nc5 {[%emt 0:02:23]} 19. cxd5 {[%emt 0:04:36]} exd5 {[%emt 0:00:12]} 20. Nd4 {[%emt 0:00:40]} b6 {[%emt 0:04:56]} 21. Nc6 {[%emt 0:01:19]} Qc7 {[%emt 0:05:33]} 22. Nf3 {[%emt 0:00:45]} Re8 {[%emt 0:09:05]} 23. Rfd1 {[%emt 0:01:16]} Be6 {[%emt 0:03:21]} 24. Nfd4 {[%emt 0:02:21]} Nfe4 {[%emt 0:09:06]} 25. Rac1 {[%emt 0:00:21]} Rac8 {[%emt 0:14:19]} 26. Bf3 {[%emt 0:03:01]} Nf6 {[%emt 0:08:25]} 27. Qb2 {[%emt 0:03:56]} Qb7 {[%emt 0:03:14]} 28. Rc2 {[%emt 0:03:14]} Nfe4 {[%emt 0:06:17]} 29. Qb4 {[%emt 0:04:05]} Rc7 {[%emt 0:07:55]} 30. Nxe6 {[%emt 0:03:39]} fxe6 {[%emt 0:00:33]} 31. Bxe4 {[%emt 0:00:28]} Nxe4 {[%emt 0:00:58]} 32. Qxa4 {[%emt 0:02:47]} Rf8 {[%emt 0:00:33]} 33. g4 {[%emt 0:06:05]} Rcf7 {[%emt 0:03:15]} 34. f3 {[%emt 0:00:06]} Nc5 {[%emt 0:03:58]} 35. Qb4 {[%emt 0:03:44]} Qc7 {[%emt 0:01:13]} 36. Nd4 {[%emt 0:02:47]} Qe5 {[%emt 0:01:37]} 37. Qd2 {[%emt 0:03:45]} Ra8 {[%emt 0:01:30]} 38. Rc3 {[%emt 0:00:50]} Qd6 {[%emt 0:00:43]} 39. Nc2 {[%emt 0:02:33]} Raf8 {[%emt 0:01:16]} 40. e4 {[%emt 0:03:00]} Rd7 {[%emt 0:00:52]} 41. Qd4 {[%emt 0:01:03]} Qf4 {[%emt 0:00:23]} 42. e5 {[%emt 0:00:35]} Qf7 {[%emt 0:00:07]} 43. Nb4 {[%emt 0:00:21]} Ra8 {[%emt 0:00:24]} 44. Nd3 {[%emt 0:00:41]} Ra4 {[%emt 0:00:14]} 45. Qf2 {[%emt 0:00:40]} Nxd3 {[%emt 0:01:44]} 46. Rdxd3 {[%emt 0:00:53]} Rc4 {[%emt 0:00:51]} 47. Qxb6 {[%emt 0:02:49]} Rdc7 {[%emt 0:00:23]} 48. Rxc4 {[%emt 0:00:00]} Rxc4 {[%emt 0:00:07]} 49. Qe3 {[%emt 0:00:00]} Qc7 {[%emt 0:00:50]} 50. b6 {[%emt 0:00:14]} Qc6 {[%emt 0:01:20]} 51. Rb3 {[%emt 0:00:22]} Qb7 {[%emt 0:00:27]} 52. Rb4 {[%emt 0:00:31]} d4 {[%emt 0:01:12]} 53. Qe4 {[%emt 0:00:23]} Rc1+ {[%emt 0:00:16]} 54. Kh2 {[%emt 0:00:38]} Qe7 {[%emt 0:00:20]} 55. g3 {[%emt 0:00:47]} Qc5 {[%emt 0:01:21]} 56. b7 {[%emt 0:00:26]} Rh1+ {[%emt 0:00:28]} 57. Kxh1 {[%emt 0:00:17]} Qc1+ {[%emt 0:00:16]} 58. Kg2 {[%emt 0:00:08]} Qd2+ {[%emt 0:00:11]} 59. Kh3 {[%emt 0:00:27]} Qf2 {[%emt 0:01:07]} 60. b8=Q+ {[%emt 0:00:11]} 1-0

[Event "Western Asian Juniors Chess-ch 2023"]
[Site "Colombo"]
[Date "2023.12.01"]
[Round "3.9"]
[White "Senevirathne, D C B K"]
[Black "Senevirathne, S D B K"]
[Result "0-1"]
[ECO "C54"]
[WhiteElo "1482"]
[BlackElo "1802"]
[Annotator "NA"]
[PlyCount "46"]
[EventDate "2023.11.30"]
[EventCountry "SRI"]
[SourceTitle "playchess.com"]
[Source "ChessBase"]
[SourceQuality "1"]
[TimeControl "5400+30"]

1. e4 {[%emt 0:00:03]} e5 {[%emt 0:00:27]} 2. Nf3 {[%emt 0:00:22]} Nc6 {[%emt 0:00:06]} 3. Bc4 {[%emt 0:00:50]} Bc5 {[%emt 0:00:14]} 4. c3 {[%emt 0:00:23]} Nf6 {[%emt 0:00:30]} 5. O-O {[%emt 0:00:40]} Nxe4 {[%emt 0:01:00]} 6. Qe2 {[%emt 0:04:35]} d5 {[%emt 0:00:50]} 7. Bb5 {[%emt 0:04:06]} O-O {[%emt 0:02:25]} 8. d3 {[%emt 0:01:24]} Nd6 {[%emt 0:01:45]} 9. Bxc6 {[%emt 0:01:39]} bxc6 {[%emt 0:00:06]} 10. Qxe5 {[%emt 0:03:36]} Re8 {[%emt 0:00:45]} 11. Qg5 {[%emt 0:00:19]} Ba6 {[%emt 0:02:01]} 12. Qd2 {[%emt 0:02:47]} Nf5 {[%emt 0:03:21]} 13. b4 {[%emt 0:03:59]} Bd6 {[%emt 0:00:07]} 14. a4 {[%emt 0:01:03]} Qf6 {[%emt 0:07:43]} 15. Bb2 {[%emt 0:07:25]} Nh4 {[%emt 0:00:14]} 16. Nxh4 {[%emt 0:01:36]} Qxh4 {[%emt 0:00:09]} 17. h3 {[%emt 0:01:29]} Qh5 {[%emt 0:00:55]} 18. c4 {[%emt 0:06:28]} dxc4 {[%emt 0:02:57]} 19. dxc4 {[%emt 0:03:04]} Re2 {[%emt 0:00:07]} 20. Qd1 {[%emt 0:00:31]} Bxc4 {[%emt 0:01:27]} 21. Na3 {[%emt 0:04:14]} Bd5 {[%emt 0:00:38]} 22. Re1 {[%emt 0:04:30]} Qg6 {[%emt 0:00:16]} 23. f3 {[%emt 0:01:26]} Qxg2# {[%emt 0:00:09]} 0-1

[Event "Western Asian Juniors Chess-ch 2023"]
[Site "Colombo"]
[Date "2023.12.01"]
[Round "3.10"]
[White "Janukshan, B."]
[Black "Galkotuwa, K A R G W D R B G"]
[Result "1-0"]
[ECO "E16"]
[WhiteElo "1635"]
[BlackElo "1532"]
[Annotator "NA RC"]
[PlyCount "155"]
[EventDate "2023.11.30"]
[EventCountry "SRI"]
[SourceTitle "playchess.com"]
[Source "ChessBase"]
[SourceQuality "1"]
[TimeControl "5400+30"]

1. d4 {[%emt 0:01:14]} d5 {[%emt 0:00:19]} 2. Nf3 {[%emt 0:00:56]} Nf6 {[%emt 0:01:10]} 3. g3 {[%emt 0:01:14]} e6 {[%emt 0:03:06]} 4. Bg2 {[%emt 0:00:42]} Be7 {[%emt 0:00:52]} 5. O-O {[%emt 0:01:31]} b6 {[%emt 0:02:47]} 6. c4 {[%emt 0:01:55]} Bb7 {[%emt 0:00:26]} 7. Nc3 {[%emt 0:02:15]} Nbd7 {[%emt 0:02:22]} 8. Bf4 {[%emt 0:16:51]} c6 {[%emt 0:05:34]} 9. Nd2 {[%emt 0:08:31]} O-O {[%emt 0:06:02]} 10. e4 {[%emt 0:08:42]} dxe4 {[%emt 0:01:35]} 11. Ndxe4 {[%emt 0:01:37]} Nxe4 {[%emt 0:00:38]} 12. Bxe4 {[%emt 0:01:29]} Nf6 {[%emt 0:03:30]} 13. Bf3 {[%emt 0:02:26]} Rc8 {[%emt 0:02:31]} 14. Rc1 {[%emt 0:06:39]} Ba6 {[%emt 0:03:16]} 15. Qa4 {[%emt 0:01:57]} Bb7 {[%emt 0:03:17]} 16. Qxa7 {[%emt 0:01:22]} Ba8 {[%emt 0:01:02]} 17. Rfd1 {[%emt 0:02:46]} b5 {[%emt 0:03:36]} 18. c5 {[%emt 0:05:29]} Ne8 {[%emt 0:05:35]} 19. Qa3 {[%emt 0:09:28]} g5 {[%emt 0:05:47]} 20. Be3 {[%emt 0:02:05]} f5 {[%emt 0:02:25]} 21. Qb3 {[%emt 0:01:37]} Ng7 {[%emt 0:00:34]} 22. Ne2 {[%emt 0:02:02]} Qc7 {[%emt 0:02:41]} 23. Bd2 {[%emt 0:01:09]} Kh8 {[%emt 0:05:02]} 24. Kh1 {[%emt 0:04:00]} Rcd8 {[%emt 0:02:44]} 25. Bc3 {[%emt 0:03:04]} Bb7 {[%emt 0:05:30]} 26. Qc2 {[%emt 0:02:02]} h6 {[%emt 0:31:09]} 27. b4 {[%emt 0:03:11]} Bf6 {[%emt 0:00:00]} 28. Re1 {[%emt 0:02:41]} Qf7 {[%emt 0:00:00]} 29. Rcd1 {[%emt 0:00:43]} Ra8 {[%emt 0:00:00]} 30. Nc1 {[%emt 0:00:27]} h5 {[%emt 0:00:00]} 31. Nd3 {[%emt 0:01:38]} Rfd8 {[%emt 0:00:00]} 32. Ne5 {[%emt 0:01:16]} Bxe5 {[%emt 0:00:00]} 33. Rxe5 {[%emt 0:04:01]} Rd7 {[%emt 0:00:00]} 34. Rde1 {[%emt 0:00:00]} Rad8 {[%emt 0:00:00]} 35. Bb2 {[%emt 0:00:00]} Kg8 {[%emt 0:00:00]} 36. a4 {[%emt 0:00:00]} bxa4 {[%emt 0:00:00]} 37. Qxa4 {[%emt 0:00:00]} Ra8 {[%emt 0:00:00]} 38. Qb3 {[%emt 0:00:00]} Rc7 {[%emt 0:00:00]} 39. Kg1 {[%emt 0:02:09]} Ra7 {[%emt 0:00:00]} 40. Rc1 {[%emt 0:00:36]} Ba6 {[%emt 0:00:00]} 41. Be2 {[%emt 0:00:37]} Bxe2 {[%emt 0:00:53]} 42. Rxe2 {[%emt 0:00:01]} Rab7 {[%emt 0:02:14]} 43. Rce1 {[%emt 0:00:53]} Re7 {[%emt 0:01:22]} 44. Qc4 {[%emt 0:00:24]} Qe8 {[%emt 0:01:34]} 45. Qc3 {[%emt 0:00:18]} Qd7 {[%emt 0:01:11]} 46. Bc1 {[%emt 0:00:24]} Qd5 {[%emt 0:01:10]} 47. Bxg5 {[%emt 0:00:14]} Red7 {[%emt 0:00:11]} 48. Bf6 {[%emt 0:00:23]} Rf7 {[%emt 0:01:45]} 49. Bxg7 {[%emt 0:00:11]} Rxg7 {[%emt 0:00:05]} 50. Rxe6 {[%emt 0:00:17]} Rbf7 {[%emt 0:00:22]} 51. Rd6 {[%emt 0:00:17]} Qa2 {[%emt 0:00:24]} 52. Rxc6 {[%emt 0:00:18]} h4 {[%emt 0:00:07]} 53. Qf3 {[%emt 0:00:17]} Rg4 {[%emt 0:01:09]} 54. Rc8+ {[%emt 0:01:34]} Kg7 {[%emt 0:01:33]} 55. d5 {[%emt 0:00:26]} Qd2 {[%emt 0:00:00]} 56. Rd1 {[%emt 0:00:51]} Qxb4 {[%emt 0:00:00]} 57. d6 {[%emt 0:00:10]} Rd4 {[%emt 0:00:58]} 58. Rf1 {[%emt 0:00:29]} Rc4 {[%emt 0:00:27]} 59. Qh5 {[%emt 0:00:14]} Kf6 {[%emt 0:01:05]} 60. Qh6+ {[%emt 0:00:42]} Ke5 {[%emt 0:00:00]} 61. Re8+ {[%emt 0:02:15]} Kd4 {[%emt 0:01:00]} 62. Qe3+ {[%emt 0:00:00]} Kd5 {[%emt 0:00:30]} 63. Qe6+ Kxc5 {[%emt 0:00:00]} 64. Qxf7 {[%emt 0:00:00]} Kxd6 {[%emt 0:01:00]} 65. Qe7+ {[%emt 0:02:00]} Kc6 {[%emt 0:00:00]} 66. Rc8+ {[%emt 0:00:00]} Kd5 {[%emt 0:00:00]} 67. Rd1+ {[%emt 0:00:00]} Rd4 {[%emt 0:00:00]} 68. Rd8+ {[%emt 0:00:00]} Kc6 {[%emt 0:02:00]} 69. Rc1+ {[%emt 0:00:00]} Rc4 {[%emt 0:00:00]} 70. Qd7+ {[%emt 0:00:00]} Kb6 {[%emt 0:00:00]} 71. Rb8+ {[%emt 0:00:00]} Kc5 {[%emt 0:00:00]} 72. Rxc4+ {[%emt 0:00:00]} Qxc4 {[%emt 0:00:00]} 73. Rc8+ {[%emt 0:00:00]} Kb4 {[%emt 0:00:00]} 74. Qd2+ {[%emt 0:00:00]} Kb5 {[%emt 0:00:15]} 75. Qb2+ {[%emt 0:00:00]} Qb4 {[%emt 0:00:15]} 76. Rb8+ {[%emt 0:00:00]} Kc6 {[%emt 0:00:17]} 77. Qxb4 {[%emt 0:00:00]} Kd5 {[%emt 0:00:09]} 78. Rb5+ {[%emt 0:00:12]} 1-0

[Event "Western Asian Juniors Chess-ch 2023"]
[Site "Colombo"]
[Date "2023.12.01"]
[Round "4.1"]
[White "Harshavardhan G B"]
[Black "Hommadov, Amanmuhammet"]
[Result "1/2-1/2"]
[ECO "E92"]
[WhiteElo "2390"]
[BlackElo "2055"]
[Annotator "RC"]
[PlyCount "71"]
[EventDate "2023.11.30"]
[EventCountry "SRI"]
[SourceTitle "playchess.com"]
[Source "ChessBase"]
[SourceQuality "1"]
[TimeControl "5400+30"]

1. d4 {[%emt 0:03:20]} Nf6 {[%emt 0:00:16]} 2. c4 {[%emt 0:00:13]} g6 {[%emt 0:00:06]} 3. Nc3 {[%emt 0:00:17]} Bg7 {[%emt 0:00:11]} 4. e4 {[%emt 0:00:11]} d6 {[%emt 0:00:06]} 5. Nf3 {[%emt 0:00:09]} O-O {[%emt 0:00:07]} 6. Be2 {[%emt 0:00:07]} e5 {[%emt 0:00:04]} 7. d5 {[%emt 0:00:07]} a5 {[%emt 0:01:36]} 8. Bg5 {[%emt 0:00:10]} Na6 {[%emt 0:00:06]} 9. Nd2 {[%emt 0:00:08]} Qe8 {[%emt 0:00:41]} 10. g4 {[%emt 0:04:26]} Nd7 {[%emt 0:00:41]} 11. Rg1 {[%emt 0:01:17]} Ndc5 {[%emt 0:02:39]} 12. Nb3 {[%emt 0:04:55]} Nxb3 {[%emt 0:07:46]} 13. Qxb3 {[%emt 0:00:11]} Nc5 {[%emt 0:00:21]} 14. Qc2 {[%emt 0:00:25]} Bd7 {[%emt 0:08:01]} 15. O-O-O {[%emt 0:00:39]} c6 {[%emt 0:09:29]} 16. Be3 {[%emt 0:01:18]} cxd5 {[%emt 0:08:25]} 17. Bxc5 {[%emt 0:00:39]} dxc5 {[%emt 0:00:04]} 18. Nxd5 {[%emt 0:00:11]} Qd8 {[%emt 0:00:24]} 19. g5 {[%emt 0:01:17]} Bc6 {[%emt 0:08:35]} 20. Qd2 {[%emt 0:07:33]} b6 {[%emt 0:02:08]} 21. Rg3 {[%emt 0:03:23]} Bxd5 {[%emt 0:00:17]} 22. Rd3 {[%emt 0:00:57]} Qc8 {[%emt 0:00:33]} 23. cxd5 {[%emt 0:02:08]} c4 {[%emt 0:10:09]} 24. Rc3 {[%emt 0:00:55]} b5 {[%emt 0:00:04]} 25. b3 {[%emt 0:00:12]} Qc5 {[%emt 0:00:06]} 26. Qe3 {[%emt 0:01:17]} Qd6 {[%emt 0:03:13]} 27. bxc4 {[%emt 0:00:52]} bxc4 {[%emt 0:00:02]} 28. Rxc4 {[%emt 0:00:58]} Rfc8 {[%emt 0:00:20]} 29. Rd2 {[%emt 0:01:31]} Bf8 {[%emt 0:03:08]} 30. Rdc2 {[%emt 0:03:59]} Rxc4 {[%emt 0:00:07]} 31. Bxc4 {[%emt 0:00:39]} Rb8 {[%emt 0:01:41]} 32. a4 {[%emt 0:02:56]} Rb4 {[%emt 0:07:38]} 33. Bb5 {[%emt 0:01:44]} Rd4 {[%emt 0:01:24]} 34. f3 {[%emt 0:00:46]} Qb4 {[%emt 0:01:34]} 35. h4 {[%emt 0:05:39]} h6 {[%emt 0:02:23]} 36. Rd2 {[%emt 0:03:33]} 1/2-1/2